bitfinex/quotes_ETHUSD_20241217
["timestamp","ask_amount","ask_price","bid_price","bid_amount"]
[1734439440518,0.04940817,4005.3,4004.7,0.18543876]
[1734439440712,0.04940817,4005.3,4004.5,2.33237533]
[1734439440912,0.04940817,4005.3,4004.6,0.18543401]
[1734439441112,0.04940817,4005.3,4004.7,0.18543401]
[1734439441317,0.04940817,4005.3,4004.5,2.33237533]
[1734439441622,0.04940817,4005.3,4004.6,0.18543401]
[1734439441912,0.04940817,4005.3,4004.7,0.18543401]
[1734439442116,0.04940817,4005.3,4004.5,2.33237533]
[1734439442283,0.04940817,4005.3,4004.6,0.1854776]
[1734439442486,0.04940817,4005.3,4004.5,2.33237533]
[1734439442800,0.04940817,4005.3,4004.6,0.18547715]
[1734439442992,0.04940817,4005.3,4004.7,0.18547715]
[1734439443194,0.04940817,4005.3,4004.5,2.33237533]
[1734439443393,0.04940817,4005.3,4004.6,0.18545643]
[1734439443694,0.04940817,4005.3,4004.7,0.18545643]
[1734439443907,0.04940817,4005.3,4004.5,2.33237533]
[1734439444083,0.04940817,4005.3,4004.6,0.18546847]
[1734439444285,0.04940817,4005.3,4004.7,0.18546847]
[1734439444502,0.04940817,4005.3,4004.8,0.18546847]
[1734439444824,0.04940817,4005.3,4004.5,2.33237533]
[1734439444990,0.04940817,4005.3,4004.6,0.18548301]
[1734439445192,0.04940817,4005.3,4004.7,0.18548301]
[1734439445515,0.04940817,4005.3,4004.5,2.33237533]
[1734439445829,0.04940817,4005.3,4004.6,0.18550402]
[1734439446051,0.04940817,4005.3,4004.7,0.18550402]
[1734439446254,0.04940817,4005.3,4004.8,0.18550402]
[1734439446518,0.04940817,4005.3,4004.9,0.18550402]
[1734439446680,0.04940817,4005.3,4004.5,2.33237533]
[1734439446878,0.04940817,4005.3,4004.6,0.18553505]
[1734439447078,0.04940817,4005.3,4004.7,0.18553505]
[1734439447278,0.04940817,4005.3,4004.8,0.18553505]
[1734439447524,0.04940817,4005.3,4004.9,0.18553505]
[1734439447686,0.04940817,4005.3,4004.6,0.18553505]
[1734439447884,0.04940817,4005.3,4004.7,0.18554849]
[1734439448213,0.04940817,4005.3,4004.8,0.18554849]
[1734439448521,0.04940817,4005.3,4005.0,1.88974494]
[1734439448818,0.04940817,4005.3,4005.1,0.78590957]
[1734439449042,0.7802,4006.0,4005.2,0.18554849]
[1734439449191,0.7802,4006.0,4005.1,0.60036108]
[1734439449192,0.7802,4006.0,4005.6,1.07594494]
[1734439449534,0.7802,4006.0,4005.7,0.18554849]
[1734439449828,0.7802,4006.0,4005.6,1.07594494]
[1734439450033,0.04645434,4005.9,4005.7,0.18542236]
[1734439450241,0.7802,4006.0,4005.6,1.07594494]
[1734439450386,0.0473378,4005.9,4005.7,0.18533459]
[1734439450586,0.7802,4006.0,4005.6,1.07594494]
[1734439450829,0.0473378,4005.9,4005.6,1.07594494]
[1734439451139,0.7802,4006.0,4005.6,1.07594494]
[1734439451431,0.04746116,4005.9,4005.6,1.07594494]
[1734439451631,0.7802,4006.0,4005.6,1.07594494]
[1734439451788,0.04746116,4005.9,4005.6,1.07594494]
[1734439451987,0.7802,4006.0,4005.1,2.33035691]
[1734439452185,0.7802,4006.0,4005.2,0.18527543]
[1734439452393,0.7802,4006.0,4005.3,0.18527543]
[1734439452589,0.7802,4006.0,4005.4,0.18527543]
[1734439452845,0.04589886,4005.9,4004.6,0.8138]
[1734439453124,0.8802,4005.8,4004.7,0.18531279]
[1734439453286,0.7802,4005.6,4004.8,0.18531279]
[1734439453491,0.7802,4005.6,4004.4,0.8138]
[1734439453790,0.7802,4005.4,4004.5,0.1853414]
[1734439454119,0.04596312,4005.3,4004.6,0.1853414]
[1734439454307,0.04596312,4005.3,4004.7,0.1853414]
[1734439454627,0.04596312,4005.3,4004.8,0.18535125]
[1734439454922,0.04596312,4005.3,4004.4,0.8138]
[1734439455129,0.04596312,4005.3,4004.5,0.18535874]
[1734439455449,0.04596312,4005.3,4004.4,0.8138]
[1734439455722,0.04596312,4005.3,4004.5,0.18536679]
[1734439455886,0.04596312,4005.3,4004.6,0.18536679]
[1734439456088,0.04596312,4005.3,4004.7,0.18536679]
[1734439456287,0.04596312,4005.3,4004.8,0.18536679]
[1734439456522,0.04596312,4005.3,4004.4,0.8138]
[1734439456708,0.04596312,4005.3,4004.5,0.18540695]
[1734439456909,0.04596312,4005.3,4004.6,0.18540695]
[1734439457107,0.04596312,4005.3,4004.7,0.18540695]
[1734439457318,0.04596312,4005.3,4004.8,0.18540695]
[1734439457623,0.7839,4005.2,4004.1,0.764]
[1734439457839,0.04559308,4005.1,4004.2,0.1854872]
[1734439458044,0.7839,4005.1,4004.3,0.1854872]
[1734439458257,0.04522303,4005.0,4004.4,0.1854872]
[1734439458407,0.04522303,4005.0,4004.5,0.1854872]
[1734439458744,0.04522303,4005.0,4004.1,2.33035691]
[1734439458901,0.04522303,4005.0,4004.2,0.18548687]
[1734439459102,0.7839,4005.1,4004.3,0.18548687]
[1734439459309,0.7839,4005.1,4004.4,0.18548687]
[1734439459512,0.7839,4005.1,4004.5,0.18548687]
[1734439459699,0.7839,4005.1,4004.6,0.18548687]
[1734439459904,0.045149,4005.0,4004.7,0.18548687]
[1734439460096,0.7839,4005.1,4004.8,0.18548687]
[1734439460298,0.7839,4005.1,4004.9,0.18548687]
[1734439460540,0.0451786,4005.0,4004.4,0.764]
[1734439460713,0.0451786,4005.0,4004.5,0.1854308]
[1734439461032,0.7839,4005.1,4004.6,0.1854308]
[1734439461331,0.7839,4005.1,4004.7,0.1854308]
[1734439461534,0.7839,4005.1,4004.8,0.1854308]
[1734439461732,0.7839,4005.1,4004.9,0.1854308]
[1734439461952,0.7839,4005.1,4004.5,0.1854308]
[1734439462155,0.04503025,4005.0,4004.4,0.764]
[1734439462358,0.7839,4005.1,4004.5,0.18546389]
[1734439462520,0.7839,4005.1,4004.6,0.18546389]
[1734439462833,0.7839,4005.1,4004.7,0.18546389]
[1734439463014,0.7839,4005.1,4004.8,0.18546389]
[1734439463211,0.04504999,4005.0,4004.9,0.18546389]
[1734439471928,0.04504999,4005.0,4004.0,1.0385697]
[1734439472127,0.04504999,4005.0,4004.1,1.01446089]
[1734439472330,0.04504999,4005.0,4004.2,0.18554262]
[1734439472526,0.04504999,4005.0,4003.9,1.0385697]
[1734439472739,0.23238631,4005.0,4004.0,3.18555976]
[1734439472963,0.23238631,4005.0,4004.1,1.01476917]
[1734439473154,0.23238631,4005.0,4004.2,1.01491049]
[1734439473456,0.04504999,4005.0,4004.3,0.18555976]
[1734439473621,0.04504999,4005.0,4004.4,0.18555976]
[1734439473929,0.04504999,4005.0,4004.5,0.18555976]
[1734439474129,0.04504999,4005.0,4003.9,1.0385697]
[1734439474130,0.04504999,4005.0,4004.6,0.18555976]
[1734439474338,0.7626,4004.9,4004.7,0.18555976]
[1734439474664,0.04484767,4004.8,4003.9,5.11485656]
[1734439474824,0.7626,4004.9,4004.0,5.2599083]
[1734439475023,0.04484767,4004.8,4004.1,0.1855968]
[1734439475258,0.04484767,4004.8,4004.2,1.01530858]
[1734439475444,0.04484767,4004.8,4004.3,0.1855968]
[1734439475651,0.04484767,4004.8,4004.4,0.1855968]
[1734439475847,0.04484767,4004.8,4004.5,0.1855968]
[1734439476028,0.04484767,4004.8,4004.6,0.1855968]
[1734439476227,0.04484767,4004.8,4003.9,5.11485656]
[1734439476422,0.04484767,4004.8,4004.0,6.29862718]
[1734439476622,0.04484767,4004.8,4004.1,2.26005748]
[1734439476823,0.04484767,4004.8,4004.0,3.0]
[1734439476824,0.04484767,4004.8,4004.2,1.01536333]
[1734439477023,0.04484767,4004.8,4004.3,0.18556723]
[1734439477248,0.04484767,4004.8,4004.4,0.18556723]
[1734439477563,0.04484767,4004.8,4004.5,0.18556723]
[1734439477867,0.04484767,4004.8,4004.6,0.18556723]
[1734439478070,0.04484767,4004.8,4003.9,5.11485656]
[1734439478267,0.04484767,4004.8,4004.0,5.26030011]
[1734439478565,0.04484767,4004.8,4004.1,2.07472823]
[1734439478863,1.62707364,4004.7,4003.6,2.11485656]
[1734439479068,0.7626,4004.7,4003.7,5.07517575]
[1734439479267,0.04467988,4004.6,4003.8,2.07517575]
[1734439479469,0.04467988,4004.6,4003.9,0.8300703]
[1734439479627,0.04467988,4004.6,4003.7,3.0]
[1734439479963,0.04467988,4004.6,4003.8,2.07481831]
[1734439480474,0.7626,4004.5,4003.7,3.0]
[1734439480670,0.7626,4004.5,4003.8,0.82986481]
[1734439480842,0.04457627,4004.4,4003.8,0.82986481]
[1734439481776,0.04457627,4004.4,4003.6,2.11485656]
[1734439481979,0.7626,4004.5,4003.7,5.07461543]
[1734439482278,0.04455157,4004.4,4003.8,0.82984617]
[1734439482478,0.04455157,4004.4,4003.6,4.07628686]
[1734439482479,0.04455157,4004.4,4003.7,3.0]
[1734439482773,0.04455157,4004.4,4003.8,0.82953874]
[1734439482981,0.7626,4004.5,4003.6,4.07628686]
[1734439483141,0.04306432,4004.3,4003.7,2.07367728]
[1734439483337,0.04306924,4004.4,4003.8,0.82947091]
[1734439483543,0.7626,4004.5,4003.6,4.07628686]
[1734439483852,0.04306924,4004.4,4003.7,5.07346745]
[1734439484049,0.04306924,4004.4,4003.8,0.82938698]
[1734439484287,0.04306924,4004.4,4003.6,1.07628686]
[1734439484483,0.04306924,4004.4,4003.7,2.07371543]
[1734439484659,0.04306924,4004.4,4003.6,1.07628686]
[1734439484860,0.7626,4004.5,4003.7,5.0736232]
[1734439485182,0.04306431,4004.4,4003.6,1.07628686]
[1734439485387,0.04306431,4004.4,4003.7,2.0738465]
[1734439485685,0.7626,4004.5,4003.7,3.0]
[1734439485886,0.7626,4004.5,4003.6,1.07628686]
[1734439486055,0.04306431,4004.4,4003.7,2.07374653]
[1734439486249,0.7626,4004.5,4003.6,1.07628686]
[1734439486450,0.04308898,4004.4,4003.7,2.07372358]
[1734439486754,0.7626,4004.5,4003.7,5.07372358]
[1734439486956,0.7626,4004.5,4003.6,4.07628686]
[1734439487147,0.04308898,4004.4,4003.7,2.07372936]
[1734439487352,0.04308898,4004.4,4003.6,1.07628686]
[1734439487583,0.7626,4004.5,4003.7,0.82941069]
[1734439487785,0.7626,4004.5,4003.6,1.07628686]
[1734439487990,0.04312848,4004.4,4003.6,1.07628686]
[1734439490397,0.04312848,4004.4,4003.4,4.0827701]
[1734439490398,0.04312848,4004.4,4003.4,5.15905696]
[1734439490701,0.04312848,4004.4,4003.5,0.8290208]
[1734439494197,0.04312848,4004.4,4003.4,2.15905696]
[1734439494418,0.04312848,4004.4,4003.5,0.82835561]
[1734439494914,0.04312848,4004.4,4003.7,1.07628686]
[1734439495387,0.7626,4004.5,4003.4,1.0827701]
[1734439495569,0.7626,4004.5,4003.7,1.07628686]
[1734439495764,0.04297724,4004.4,4003.7,1.07628686]
[1734439496103,0.7626,4004.5,4003.7,1.07628686]
[1734439496604,0.04302168,4004.4,4003.7,1.07628686]
[1734439500605,0.04302168,4004.4,4003.4,2.89325656]
[1734439500807,0.04302168,4004.4,4003.5,3.1111905]
[1734439501588,0.04302168,4004.4,4003.6,2.0726208]
[1734439501788,0.8187,4004.3,4003.6,2.0726208]
[1734439502014,0.8187,4004.3,4003.7,0.82913793]
[1734439502218,0.04280115,4004.2,4003.4,2.89325656]
[1734439502511,0.8187,4004.3,4003.5,2.07275998]
[1734439502880,0.04281595,4004.2,4003.5,2.07275998]
[1734439503083,0.8187,4004.3,4003.5,2.07275998]
[1734439503587,0.04249642,4004.2,4003.5,2.07275998]
[1734439503895,0.8187,4004.3,4003.5,2.07275998]
[1734439504316,0.04247669,4004.2,4003.5,2.07275998]
[1734439504721,0.8187,4004.3,4003.5,2.07275998]
[1734439505103,0.04247669,4004.2,4003.5,2.07275998]
[1734439505634,0.8187,4004.3,4003.5,2.07275998]
[1734439505839,0.04248162,4004.2,4003.5,2.07275998]
[1734439506034,0.8187,4004.3,4003.7,1.07628686]
[1734439506208,0.8187,4004.3,4003.8,0.82933492]
[1734439506209,0.04248162,4004.2,4003.8,0.82933492]
[1734439506408,0.8187,4004.3,4003.7,1.07628686]
[1734439506611,0.8187,4004.3,4003.8,0.54530243]
[1734439506807,0.04251929,4004.2,4003.9,0.29743769]
[1734439507031,0.8187,4004.3,4004.0,0.29743769]
[1734439507203,0.8187,4004.3,4004.1,0.29743769]
[1734439507398,0.04252916,4004.2,4003.7,0.24786474]
[1734439508005,0.8187,4004.1,4003.7,0.24786474]
[1734439508201,0.8187,4004.1,4003.4,0.24786474]
[1734439508202,0.04241566,4004.0,4003.4,0.24786474]
[1734439508402,0.8187,4003.9,4003.3,0.24786474]
[1734439508604,0.04230215,4003.8,4003.3,0.24786474]
[1734439508803,0.8187,4003.9,4003.2,0.24786474]
[1734439509003,0.04230215,4003.8,4003.2,0.24786474]
[1734439509937,0.04230215,4003.8,4003.3,0.24786474]
[1734439510151,0.04230215,4003.8,4003.2,0.24786474]
[1734439510471,0.04230215,4003.8,4002.8,0.3043701]
[1734439510472,0.8187,4003.7,4002.8,2.41922666]
[1734439510604,0.04190225,4003.6,4003.1,0.247863]
[1734439511461,0.04190225,4003.6,4003.0,0.247863]
[1734439511664,0.04190225,4003.6,4002.9,0.247863]
[1734439511943,0.04190225,4003.6,4003.0,2.07518058]
[1734439512167,0.8187,4003.5,4002.9,0.247863]
[1734439512476,0.8187,4003.5,4002.8,0.247863]
[1734439512477,0.04181834,4003.4,4002.8,0.247863]
[1734439512763,0.04181834,4003.4,4002.9,0.8301529]
[1734439512927,0.04181834,4003.4,4002.7,0.247863]
[1734439513245,0.8187,4003.5,4002.8,2.07548427]
[1734439513447,0.8187,4003.5,4002.7,0.247863]
[1734439513448,0.04171464,4003.4,4002.7,0.247863]
[1734439513622,0.04171464,4003.4,4002.8,0.83013018]
[1734439514612,0.04171464,4003.4,4002.6,0.247863]
[1734439514843,0.04171464,4003.4,4002.7,2.07506663]
[1734439515249,0.04171464,4003.4,4002.6,0.247863]
[1734439515433,0.04171464,4003.4,4002.7,2.0745897]
[1734439515637,0.36041464,4003.5,4002.5,5.36271956]
[1734439515945,0.04001301,4003.4,4002.6,2.07496238]
[1734439516125,0.04001301,4003.4,4002.7,0.82998495]
[1734439516308,0.04001301,4003.4,4002.5,4.32414986]
[1734439516507,0.04001301,4003.4,4002.6,2.07443003]
[1734439517416,0.04001301,4003.4,4002.5,4.07628686]
[1734439517623,0.36041464,4003.5,4002.6,0.82973429]
[1734439517834,0.03985497,4003.4,4002.6,0.82973429]
[1734439519437,0.03985497,4003.4,4002.4,4.29921465]
[1734439519625,0.03985497,4003.4,4002.5,5.0740806]
[1734439519829,0.03985497,4003.4,4002.6,0.82963224]
[1734439520040,0.03985497,4003.4,4002.5,3.0]
[1734439520215,0.03985497,4003.4,4002.6,0.82957168]
[1734439520414,0.03985497,4003.4,4002.6,2.07379273]
[1734439520618,0.36041464,4003.5,4002.7,0.82957168]
[1734439520867,0.03978579,4003.4,4002.5,4.32370908]
[1734439521166,0.36041464,4003.5,4002.6,2.0740659]
[1734439521348,0.36041464,4003.5,4002.7,0.82962636]
[1734439521522,0.03978579,4003.4,4002.5,4.32370908]
[1734439521880,0.03978579,4003.4,4002.6,2.07397625]
[1734439523036,0.36041464,4003.5,4002.6,2.07397625]
[1734439524349,0.821,4003.3,4002.6,2.07397625]
[1734439524915,0.821,4003.3,4002.5,3.0]
[1734439525121,0.821,4003.3,4002.6,2.07339052]
[1734439525319,0.821,4003.3,4002.5,3.0]
[1734439525548,0.821,4003.3,4002.6,2.07309592]
[1734439525860,0.03976607,4003.2,4002.4,1.28593683]
[1734439526019,0.03976607,4003.2,4002.5,0.82923901]
[1734439526219,0.03976607,4003.2,4002.2,1.28593683]
[1734439526220,1.07628686,4002.6,4002.2,1.28593683]
[1734439526422,1.07628686,4002.6,4001.5,2.90168746]
[1734439526423,0.821,4002.2,4001.3,0.24736713]
[1734439526637,0.03952418,4002.1,4001.1,1.07326713]
[1734439526820,0.03952418,4002.1,4000.8,1.0385697]
[1734439526821,0.821,4002.0,4000.8,1.0385697]
[1734439527025,1.07628686,4002.3,4000.9,1.18403436]
[1734439527026,0.03945998,4001.9,4000.9,1.18403436]
[1734439527265,0.821,4001.8,4000.7,1.90218686]
[1734439527425,0.03896098,4001.7,4000.7,0.8259]
[1734439527628,0.821,4001.8,4000.8,1.07628686]
[1734439527873,0.03896098,4001.7,4000.8,1.07628686]
[1734439528085,0.821,4001.6,4000.3,3.21004332]
[1734439528291,0.03892147,4001.5,4000.3,1.90218686]
[1734439530361,0.03892147,4001.5,4000.6,1.07628686]
[1734439530575,0.821,4001.6,4000.9,1.07628686]
[1734439531662,0.821,4001.6,4000.3,1.35701108]
[1734439532070,0.821,4001.6,4000.3,1.08772432]
[1734439532270,0.821,4001.6,4000.3,1.90218686]
[1734439533753,0.821,4001.6,4000.6,1.07628686]
[1734439534158,0.03765135,4001.5,4000.6,1.07628686]
[1734439535244,0.7535,4001.4,4000.6,1.07628686]
[1734439535443,0.03761677,4001.3,4000.6,1.07628686]
[1734439538280,0.7535,4001.2,4000.6,1.07628686]
[1734439538483,0.03756736,4001.1,4000.6,1.07628686]
[1734439538852,0.03756736,4001.1,4000.0,0.78]
[1734439539082,0.7535,4001.2,4000.0,0.78]
[1734439539251,0.03753769,4001.1,4000.3,1.07628686]
[1734439539450,0.7535,4001.0,4000.3,1.07628686]
[1734439540753,0.03749817,4000.9,4000.3,1.07628686]
[1734439542654,0.7535,4001.0,4000.3,1.07628686]
[1734439544897,0.7535,4001.0,4000.9,1.07628686]
[1734439545288,0.1,4001.7,4000.9,1.07628686]
[1734439545289,0.8291,4001.6,4000.9,1.07628686]
[1734439545597,0.03753268,4001.5,4001.3,1.07628686]
[1734439545975,0.8291,4001.6,4001.3,1.07628686]
[1734439547403,0.1,4002.3,4001.3,1.07628686]
[1734439547404,0.7928,4002.2,4001.3,1.07628686]
[1734439548598,0.03663604,4002.1,4001.3,1.07628686]
[1734439549700,0.03663604,4002.1,4001.2,1.07628686]
[1734439550530,0.7928,4002.0,4001.1,1.07628686]
[1734439550977,0.03546696,4001.9,4001.1,1.07628686]
[1734439551188,0.03546696,4001.9,4000.6,0.8018]
[1734439551483,0.03546696,4001.9,4001.0,1.07628686]
[1734439552294,0.03546696,4001.9,4001.3,1.07628686]
[1734439552495,0.7928,4002.0,4001.3,1.07628686]
[1734439553404,2.49795,4003.3,4000.9,3.0]
[1734439553405,0.7928,4003.0,4001.9,1.07628686]
[1734439553583,0.7928,4003.0,4002.4,1.07628686]
[1734439553779,0.03566443,4002.9,4002.7,1.07628686]
[1734439553986,0.7928,4003.0,4002.4,1.07628686]
[1734439569002,0.7928,4003.0,4002.0,1.07628686]
[1734439569340,0.1,4003.7,4001.4,0.7689]
[1734439569341,0.785,4002.8,4001.4,0.7689]
[1734439569540,0.785,4002.8,4001.5,1.07628686]
[1734439569740,0.03652441,4002.7,4001.5,1.07628686]
[1734439569939,0.785,4002.6,4001.5,1.07628686]
[1734439570341,1.07628686,4003.1,4001.5,1.07628686]
[1734439570342,0.03648492,4002.5,4001.5,1.07628686]
[1734439570545,0.785,4002.4,4001.5,1.07628686]
[1734439571240,0.785,4002.4,4002.1,1.07628686]
[1734439573025,0.1,4003.5,4002.2,0.53111108]
[1734439573252,0.785,4003.8,4003.2,1.07628686]
[1734439573437,0.1,4004.3,4003.6,1.07628686]
[1734439573764,0.1,4004.3,4003.2,1.07628686]
[1734439573765,0.785,4004.2,4003.9,1.07628686]
[1734439574103,0.785,4004.2,4003.4,2.33219933]
[1734439575439,0.785,4004.2,4003.0,2.33219933]
[1734439576609,0.785,4004.2,4002.8,0.7689]
[1734439577319,0.785,4004.2,4002.6,2.33219933]
[1734439578722,0.785,4004.2,4002.6,5.33219933]
[1734439579218,0.1,4004.1,4002.6,2.33219933]
[1734439579429,0.8107,4004.0,4002.6,2.33219933]
[1734439579947,0.1,4004.1,4002.6,2.33219933]
[1734439579948,0.8107,4003.8,4002.6,2.33219933]
[1734439580537,0.03316381,4003.7,4002.6,2.33219933]
[1734439580763,0.8107,4003.8,4002.6,2.33219933]
[1734439580933,0.03314407,4003.6,4002.6,2.33219933]
[1734439581132,0.8107,4003.8,4002.6,2.33219933]
[1734439581417,0.8107,4003.6,4002.6,2.33219933]
[1734439582350,0.03310458,4003.5,4002.6,2.33219933]
[1734439582536,0.8107,4003.4,4002.2,5.33219933]
[1734439584648,0.8107,4003.4,4001.2,2.0771394]
[1734439584649,0.8107,4003.4,4001.8,3.08989933]
[1734439585061,0.1,4003.9,4001.8,3.08989933]
[1734439585062,0.84340945,4003.3,4001.8,3.08989933]
[1734439585528,0.84340945,4003.3,4001.8,2.33219933]
[1734439590568,0.84340945,4003.3,4002.2,3.08989933]
[1734439590785,0.8107,4003.3,4003.0,2.33219933]
[1734439590951,0.8107,4003.3,4002.6,2.33219933]
[1734439591556,0.8107,4003.3,4002.3,3.0]
[1734439593675,0.8107,4003.3,4002.6,2.33219933]
[1734439598968,0.8107,4003.3,4002.7,3.0]
[1734439599278,0.8107,4003.3,4002.6,5.33219933]
[1734439599471,0.8107,4003.3,4002.7,4.18468128]
[1734439599647,0.8107,4003.3,4002.6,5.33219933]
[1734439599849,0.8107,4003.3,4002.7,4.18474042]
[1734439600158,0.8107,4003.3,4002.6,5.33219933]
[1734439600968,0.8107,4003.3,4002.7,1.1848203]
[1734439601275,0.8107,4003.3,4002.6,5.33219933]
[1734439601486,0.8107,4003.3,4002.7,4.18473937]
[1734439601776,0.8107,4003.3,4002.6,5.33219933]
[1734439601946,0.8107,4003.3,4002.7,1.1847423]
[1734439602279,0.8107,4003.3,4002.6,5.33219933]
[1734439602475,0.8107,4003.3,4002.7,1.18470233]
[1734439602674,0.8107,4003.3,4002.6,5.33219933]
[1734439602975,0.8107,4003.3,4002.6,2.33219933]
[1734439608487,0.8107,4003.3,4002.6,5.33219933]
[1734439608801,0.8107,4003.3,4002.6,2.33219933]
[1734439609000,0.8107,4003.3,4002.6,5.33219933]
[1734439609457,0.7799,4004.0,4003.0,2.33219933]
[1734439609793,0.7799,4004.0,4003.0,5.33219933]
[1734439610002,0.03193382,4003.9,4003.4,1.0766259]
[1734439610492,0.03193382,4003.9,4003.7,1.0766259]
[1734439611063,0.7799,4004.0,4003.7,1.0766259]
[1734439611264,0.03208698,4003.8,4003.7,1.0766259]
[1734439611499,0.7799,4004.0,4003.7,1.0766259]
[1734439611863,0.03223512,4003.9,4003.7,1.0766259]
[1734439612071,0.7799,4004.0,4003.6,2.3320436]
[1734439612804,0.7799,4004.4,4003.6,5.3320436]
[1734439613004,0.7799,4004.4,4004.1,2.3320436]
[1734439613302,0.03228427,4004.3,4004.1,2.3320436]
[1734439613665,0.7799,4004.4,4004.1,2.3320436]
[1734439614073,0.7799,4004.9,4004.1,2.3320436]
[1734439614272,0.97233132,4004.9,4004.1,2.3320436]
[1734439614467,0.0323829,4004.8,4004.1,2.3320436]
[1734439615891,0.0323829,4004.8,4004.2,3.0]
[1734439616279,0.7799,4004.9,4004.2,3.0]
[1734439619606,0.7799,4005.4,4004.5,2.3320436]
[1734439620178,0.03193866,4005.3,4004.5,2.3320436]
[1734439623101,0.03193866,4005.3,4004.6,0.7998]
[1734439623300,0.03193866,4005.3,4004.6,3.7998]
[1734439623548,0.7799,4005.4,4004.6,3.7998]
[1734439623926,0.7799,4005.4,4004.5,2.3320436]
[1734439624311,0.03208182,4005.3,4004.5,2.3320436]
[1734439624510,0.7799,4005.4,4004.5,2.3320436]
[1734439625118,0.1,4006.5,4004.5,2.3320436]
[1734439625317,2.49607,4006.3,4004.5,2.3320436]
[1734439625534,2.15296298,4006.2,4004.5,2.3320436]
[1734439625734,2.18522223,4006.2,4004.5,2.3320436]
[1734439626052,0.86118519,4006.1,4004.1,3.0]
[1734439626244,0.86118519,4006.1,4004.0,0.7998]
[1734439626245,3.03794045,4006.0,4004.0,0.7998]
[1734439626420,2.49663,4005.4,4003.7,0.7998]
[1734439626608,2.49663,4005.4,4003.2,0.26182432]
[1734439626609,0.55,4005.4,4003.2,0.7998]
[1734439626814,0.55,4005.2,4003.2,0.7998]
[1734439627120,3.35803282,4005.1,4003.2,0.7998]
[1734439627439,0.42295924,4005.0,4003.2,0.7998]
[1734439628213,0.42295924,4005.0,4003.3,5.3320436]
[1734439628214,0.2129,4004.8,4003.3,5.3320436]
[1734439628643,0.2129,4004.6,4003.3,5.3320436]
[1734439629150,0.03173149,4004.5,4003.3,5.3320436]
[1734439630146,0.2129,4004.4,4003.3,5.3320436]
[1734439630510,0.03158837,4004.3,4003.3,5.3320436]
[1734439631130,0.2129,4004.4,4003.3,5.3320436]
[1734439631729,0.2129,4004.4,4003.7,2.3320436]
[1734439631936,1.72307479,4005.5,4003.8,3.7998]
[1734439631937,0.2129,4005.4,4003.8,3.7998]
[1734439632181,0.2129,4005.2,4003.8,3.7998]
[1734439632525,0.03167704,4005.1,4003.8,3.7998]
[1734439633565,0.2129,4005.2,4004.1,2.3320436]
[1734439633729,0.2129,4005.2,4004.2,3.7998]
[1734439634967,0.2129,4005.2,4004.5,2.3320436]
[1734439635167,0.2129,4005.9,4004.5,2.3320436]
[1734439635365,0.86170519,4005.8,4004.5,2.3320436]
[1734439635577,0.03227418,4005.8,4004.9,3.1318436]
[1734439636892,0.2129,4005.7,4003.9,0.7598]
[1734439637190,0.2129,4005.5,4003.9,0.7598]
[1734439637392,0.2129,4005.4,4003.9,0.7598]
[1734439637591,0.55,4005.2,4003.9,0.7598]
[1734439637793,0.55,4005.2,4003.0,1.0385697]
[1734439637794,0.2129,4005.0,4003.2,2.3320436]
[1734439637964,0.2129,4004.8,4003.2,2.3320436]
[1734439638362,0.03240282,4004.7,4003.2,2.3320436]
[1734439640156,0.2129,4004.6,4003.2,2.3320436]
[1734439640358,0.03202772,4004.5,4003.2,2.3320436]
[1734439640563,0.2129,4004.4,4003.2,2.3320436]
[1734439640761,0.2129,4004.4,4003.0,3.0]
[1734439640968,1.2225646,4004.9,4002.9,3.7598]
[1734439640969,0.2129,4004.2,4002.9,3.7598]
[1734439641385,0.03201299,4004.1,4002.9,3.7598]
[1734439642979,0.2129,4004.2,4002.9,3.7598]
[1734439643266,0.03201299,4004.1,4002.9,3.7598]
[1734439643479,0.2129,4004.0,4002.9,3.7598]
[1734439644119,0.03197352,4003.9,4002.9,3.7598]
[1734439644475,0.2129,4004.0,4002.9,3.7598]
[1734439644802,0.03197352,4003.9,4002.9,3.7598]
[1734439645099,0.2129,4004.0,4002.9,3.7598]
[1734439645570,0.03197352,4003.9,4002.9,3.7598]
[1734439645767,0.2129,4004.0,4002.9,3.7598]
[1734439646205,0.03197352,4003.9,4002.9,3.7598]
[1734439646589,0.2129,4004.0,4002.9,3.7598]
[1734439646915,0.03163776,4003.9,4002.9,3.7598]
[1734439647270,0.2129,4004.0,4002.9,3.7598]
[1734439647669,0.03163776,4003.9,4002.9,3.7598]
[1734439648128,0.2129,4004.0,4002.9,3.7598]
[1734439648628,0.03163776,4003.9,4002.9,3.7598]
[1734439650879,0.2129,4004.0,4002.9,3.7598]
[1734439651094,0.03106996,4003.8,4002.9,3.7598]
[1734439651296,0.2129,4004.0,4002.9,3.7598]
[1734439651495,0.03105023,4003.7,4002.9,3.7598]
[1734439651731,0.2129,4004.0,4002.9,3.7598]
[1734439652145,0.0310897,4003.9,4002.9,3.7598]
[1734439655646,0.2129,4003.8,4002.9,3.7598]
[1734439655850,0.24385113,4003.8,4002.9,3.7598]
[1734439656131,0.24385113,4003.8,4002.8,2.3320436]
[1734439658034,0.24385113,4003.8,4002.4,3.0]
[1734439659099,0.24385113,4003.8,4002.7,2.3320436]
[1734439669769,0.24385113,4003.8,4002.3,0.8198]
[1734439669985,0.24385113,4003.8,4003.1,1.0768364]
[1734439670759,0.24385113,4003.8,4002.3,0.8198]
[1734439670926,0.24385113,4003.8,4003.1,1.0768364]
[1734439672231,0.24385113,4003.8,4002.9,1.0768364]
[1734439677552,0.24385113,4003.8,4003.2,1.0768364]
[1734439682968,0.86438807,4003.7,4003.2,1.0768364]
[1734439683166,0.86438807,4003.7,4002.3,1.55785455]
[1734439683167,0.2129,4003.5,4002.2,1.0385697]
[1734439683495,4.76689126,4003.6,4002.0,1.0385697]
[1734439683496,0.2129,4003.1,4002.0,1.0385697]
[1734439683693,0.2129,4002.6,4001.6,1.0768364]
[1734439683994,0.2129,4002.6,4001.4,0.7742]
[1734439683995,2.11935589,4002.5,4001.4,0.7742]
[1734439684195,0.86438807,4002.4,4001.5,1.20184338]
[1734439684494,0.2428635,4002.3,4001.3,2.33473593]
[1734439685065,0.2428635,4002.3,4001.1,1.8127697]
[1734439685257,0.2428635,4002.3,4001.3,3.0]
[1734439685460,0.2428635,4002.3,4001.2,5.33473593]
[1734439690768,0.2129,4002.3,4001.2,5.33473593]
[1734439691800,0.02858605,4002.2,4001.2,5.33473593]
[1734439692097,0.2129,4002.3,4001.2,5.33473593]
[1734439692765,0.2129,4003.0,4002.0,2.33473593]
[1734439692964,0.49470251,4003.0,4002.0,2.33473593]